bitfinex/quotes_SOLUSD_20250410
["timestamp","ask_amount","ask_price","bid_price","bid_amount"]
[1744265354894,10.30130676,116.64,116.6,16.1761]
[1744265355199,10.30130676,116.65,116.6,26.47740676]
[1744265357004,10.30130676,116.65,116.6,47.91820676]
[1744265358103,18.87400676,116.65,116.6,26.47740676]
[1744265358308,10.30130676,116.64,116.6,16.1761]
[1744265358699,10.30130676,116.65,116.6,26.47740676]
[1744265359190,10.30130676,116.65,116.6,16.1761]
[1744265359391,10.30130676,116.64,116.6,16.1761]
[1744265364003,10.30130676,116.63,116.6,16.1761]
[1744265365712,10.30130676,116.63,116.6,8.5761]
[1744265368123,18.87550676,116.63,116.59,16.1767]
[1744265369219,10.30130676,116.63,116.59,16.1767]
[1744265369922,18.87550676,116.63,116.59,16.1767]
[1744265371397,10.30130676,116.63,116.59,16.1767]
[1744265372521,18.87550676,116.63,116.59,16.1767]
[1744265373597,10.30130676,116.62,116.58,8.5776]
[1744265373816,10.30130676,116.6,116.57,1.6351]
[1744265374025,10.30130676,116.59,116.56,16.1789]
[1744265374196,10.30130676,116.59,116.56,7.6]
[1744265374516,10.30130676,116.58,116.56,7.6]
[1744265375527,10.30130676,116.58,116.55,8.5796]
[1744265375913,10.30130676,116.58,116.54,17.7164]
[1744265376115,10.30130676,116.57,116.54,17.7164]
[1744265376414,10.30130676,116.58,116.54,17.7164]
[1744265376804,10.30130676,116.58,116.54,28.01770676]
[1744265377323,18.87890676,116.59,116.54,28.01770676]
[1744265377719,10.30130676,116.59,116.54,28.01770676]
[1744265379217,18.87840676,116.59,116.54,28.01770676]
[1744265379418,10.30130676,116.59,116.54,28.01770676]
[1744265382531,10.30130676,116.59,116.54,49.46950676]
[1744265383535,10.30130676,116.59,116.55,10.30130676]
[1744265383730,10.30130676,116.6,116.55,10.30130676]
[1744265384227,10.30130676,116.6,116.56,8.5792]
[1744265384432,18.87770676,116.6,116.56,8.5792]
[1744265385029,10.30130676,116.59,116.56,8.5792]
[1744265385634,18.87850676,116.59,116.55,8.58]
[1744265386113,18.87850676,116.59,116.53,0.063]
[1744265386114,10.30130676,116.56,116.53,0.063]
[1744265386318,10.30130676,116.54,116.53,0.063]
[1744265386727,26.0,116.55,116.53,0.063]
[1744265386929,10.30130676,116.57,116.53,8.6443]
[1744265387120,15.0758,116.59,116.53,8.6443]
[1744265387121,8.5772,116.59,116.54,10.30130676]
[1744265387325,18.87850676,116.59,116.54,10.30130676]
[1744265387524,10.30130676,116.59,116.54,17.90130676]
[1744265387728,10.30130676,116.59,116.55,8.58]
[1744265388232,10.30130676,116.58,116.55,8.58]
[1744265389234,10.30130676,116.59,116.55,8.58]
[1744265389420,10.30130676,116.61,116.56,10.30130676]
[1744265390033,10.30130676,116.61,116.57,8.5785]
[1744265390246,10.30130676,116.6,116.57,8.5785]
[1744265392013,10.30130676,116.6,116.56,8.5792]
[1744265396845,8.5756,116.61,116.56,8.5792]
[1744265396846,10.30130676,116.59,116.56,8.5792]
[1744265397643,10.30130676,116.59,116.55,1.5022]
[1744265397817,10.30130676,116.58,116.55,1.5022]
[1744265398947,10.30130676,116.58,116.55,10.0822]
[1744265399943,10.30130676,116.59,116.55,10.0822]
[1744265400146,10.30130676,116.6,116.55,20.38350676]
[1744265401149,10.30130676,116.61,116.57,8.5785]
[1744265401743,18.87690676,116.61,116.57,8.5785]
[1744265401917,10.30130676,116.6,116.56,8.5788]
[1744265404256,10.30130676,116.59,116.55,10.0818]
[1744265405760,10.30130676,116.58,116.55,8.5796]
[1744265405960,10.30130676,116.58,116.54,16.1804]
[1744265406441,10.30130676,116.59,116.54,16.1804]
[1744265406646,8.85912314,116.62,116.55,18.51940676]
[1744265406842,8.5748,116.62,116.56,10.30130676]
[1744265407147,8.5748,116.62,116.57,10.30130676]
[1744265407351,81.5,116.63,116.58,18.87910676]
[1744265407523,91.80130676,116.63,116.59,1.6144]
[1744265407728,8.603,116.65,116.59,11.91570676]
[1744265407929,10.33130676,116.65,116.6,10.30130676]
[1744265408446,10.33130676,116.65,116.59,19.51570676]
[1744265408754,10.30130676,116.64,116.59,19.51570676]
[1744265409121,10.30130676,116.63,116.59,9.2144]
[1744265409325,18.87570676,116.63,116.59,17.7913]
[1744265409824,10.30130676,116.63,116.59,17.7913]
[1744265410656,8.5736,116.64,116.59,17.7913]
[1744265411027,10.30130676,116.63,116.59,17.7913]
[1744265411657,10.30130676,116.62,116.59,9.2144]
[1744265412151,10.30130676,116.62,116.59,1.6144]
[1744265412324,10.30130676,116.6,116.56,1.641]
[1744265412525,27.22404886,116.63,116.56,1.641]
[1744265412526,10.30130676,116.57,116.56,1.641]
[1744265413457,18.88000676,116.57,116.53,1.704]
[1744265413660,8.5787,116.57,116.53,1.704]
[1744265413952,10.30130676,116.56,116.53,1.704]
[1744265414255,10.30130676,116.56,116.53,10.2853]
[1744265415257,18.88000676,116.57,116.53,10.2853]
[1744265416253,10.30130676,116.56,116.53,10.2853]
[1744265416425,10.30130676,116.56,116.53,1.704]
[1744265416973,36.35132314,116.59,116.53,1.704]
[1744265416974,10.30130676,116.55,116.53,1.704]
[1744265417649,10.30130676,116.56,116.53,1.704]
[1744265417951,36.30130676,116.56,116.53,10.2852]
[1744265418569,36.30130676,116.56,116.53,1.704]
[1744265419255,8.5779,116.58,116.53,10.2853]
[1744265419560,10.30130676,116.56,116.53,10.2853]
[1744265420841,10.30130676,116.57,116.53,10.2853]
[1744265421863,10.30130676,116.56,116.53,10.2853]
[1744265423069,8.577,116.59,116.53,10.2853]
[1744265423240,10.30130676,116.57,116.53,10.2853]
[1744265423948,8.5778,116.58,116.53,10.2853]
[1744265424259,10.30130676,116.57,116.53,10.2853]
[1744265424757,91.80130676,116.61,116.56,10.30130676]
[1744265424936,18.87640676,116.62,116.58,1.641]
[1744265425554,10.30130676,116.61,116.58,1.641]
[1744265426165,10.30130676,116.61,116.58,10.2187]
[1744265427150,10.30130676,116.62,116.58,10.2187]
[1744265428071,8.5736,116.64,116.58,26.65530676]
[1744265428441,10.30130676,116.63,116.58,26.65530676]
[1744265429572,10.30130676,116.63,116.58,16.354]
[1744265429748,10.30130676,116.62,116.58,26.65530676]
[1744265430243,8.5736,116.64,116.58,26.65530676]
[1744265430447,10.30130676,116.62,116.58,26.65530676]
[1744265430747,10.30130676,116.63,116.58,26.65530676]
[1744265431242,10.30130676,116.62,116.58,26.65530676]
[1744265431974,10.30130676,116.61,116.58,10.2187]
[1744265432849,10.30130676,116.61,116.58,1.641]
[1744265433276,10.30130676,116.61,116.58,10.2187]
[1744265434481,10.30130676,116.61,116.58,1.641]
[1744265436653,10.30130676,116.61,116.58,10.2187]
[1744265437580,18.87620676,116.62,116.58,10.2187]
[1744265438165,10.30130676,116.61,116.58,10.2187]
[1744265441488,81.53,116.65,116.58,20.52000676]
[1744265441686,0.03,116.65,116.63,11.90540676]
[1744265441867,0.03,116.65,116.64,17.90130676]
[1744265442065,0.03,116.65,116.64,7.6]
[1744265442774,0.03,116.65,116.64,24.41730676]
[1744265443496,0.03,116.65,116.64,32.99060676]
[1744265444191,0.03,116.65,116.64,22.6893]
[1744265444485,0.03,116.65,116.64,32.99060676]
[1744265445489,0.03,116.65,116.64,26.47460676]
[1744265446388,0.03,116.65,116.64,16.1733]
[1744265446767,0.03,116.65,116.64,26.47460676]
[1744265448763,0.03,116.65,116.64,16.1733]
[1744265453693,0.03,116.65,116.64,26.47460676]
[1744265454002,0.03,116.65,116.64,16.1733]
[1744265456694,0.03,116.65,116.64,26.47460676]
[1744265457789,0.03,116.66,116.64,26.47460676]
[1744265457986,0.0001,116.66,116.65,29.23527876]
[1744265458401,0.0001,116.66,116.65,35.68307876]
[1744265458614,0.0001,116.66,116.65,44.25567876]
[1744265459271,0.0001,116.66,116.65,48.44088848]
[1744265459478,0.03,116.68,116.66,18.933972]
[1744265459683,0.03,116.69,116.67,10.30130676]
[1744265459888,0.03,116.69,116.68,19.44300676]
[1744265460096,0.03,116.7,116.68,19.44300676]
[1744265460309,0.03,116.7,116.69,10.30130676]
[1744265460609,0.03,116.7,116.69,18.87100676]
[1744265462602,0.03,116.7,116.68,10.1318]
[1744265466125,0.03,116.7,116.69,16.03659049]
[1744265466408,0.03,116.7,116.69,18.933972]
[1744265466596,0.03,116.7,116.69,51.00715298]
[1744265466910,0.03,116.7,116.69,16.03659049]
[1744265468108,0.03,116.7,116.69,8.5697]
[1744265468306,0.03,116.7,116.69,24.60629049]
[1744265468803,0.03,116.7,116.69,8.5697]
[1744265468981,0.03,116.7,116.68,9.1417]
[1744265469185,0.03,116.7,116.68,7.58]
[1744265469388,0.03,116.7,116.68,16.1502]
[1744265469800,16.03659049,116.69,116.64,7.58]
[1744265469990,16.03659049,116.69,116.64,16.1531]
[1744265469991,16.03659049,116.68,116.64,16.1531]
[1744265471215,24.60649049,116.69,116.64,32.18969049]
[1744265471423,16.06659049,116.7,116.65,16.03659049]
[1744265471587,24.63559049,116.7,116.65,16.03659049]
[1744265471789,24.63559049,116.7,116.64,37.5865]
[1744265471790,16.03659049,116.69,116.64,32.18969049]
[1744265472920,16.03659049,116.69,116.64,16.1531]
[1744265473126,16.03659049,116.69,116.64,24.60969049]
[1744265474004,16.06659049,116.7,116.65,16.03659049]
[1744265475021,16.06659049,116.7,116.64,30.0065]
[1744265475022,16.03659049,116.69,116.64,46.04309049]
[1744265475424,16.06659049,116.7,116.65,16.03659049]
[1744265476228,16.06659049,116.7,116.66,8.5719]
[1744265477727,0.03,116.7,116.66,8.5719]
[1744265478024,0.03,116.7,116.66,30.0016]
[1744265478228,0.03,116.7,116.66,46.03819049]
[1744265481629,0.03,116.7,116.67,16.03659049]
[1744265482129,0.03,116.7,116.66,8.5719]
[1744265482305,22.43731363,116.7,116.65,24.60879049]
[1744265483122,6.1164,116.7,116.66,16.03659049]
[1744265483329,6.1164,116.7,116.66,24.60779049]
[1744265484508,0.03,116.7,116.67,16.03659049]
[1744265485734,0.03,116.7,116.68,8.5704]
[1744265486338,16.32091363,116.73,116.68,8.5704]
[1744265486508,16.03659049,116.7,116.66,8.5716]
[1744265486706,16.03659049,116.7,116.65,24.60889049]
[1744265487931,24.60629049,116.69,116.64,32.18959049]
[1744265489230,8.5697,116.69,116.65,24.60909049]
[1744265489428,24.60629049,116.69,116.65,8.5725]
[1744265490244,24.60629049,116.69,116.64,8.5731]
[1744265490533,24.60629049,116.69,116.64,24.60969049]
[1744265491730,8.5697,116.69,116.65,16.03659049]
[1744265494045,8.5697,116.69,116.65,24.60899049]
[1744265494338,24.60589049,116.7,116.65,24.60899049]
[1744265494543,46.02829049,116.7,116.65,16.03659049]
[1744265494837,16.03659049,116.69,116.64,24.60949049]
[1744265496140,8.5704,116.68,116.64,24.60949049]
[1744265496527,16.03659049,116.66,116.59,1.5705]
[1744265496734,16.03659049,116.65,116.6,8.5763]
[1744265497337,100.89623935,116.68,116.6,24.61289049]
[1744265497539,16.03659049,116.65,116.6,24.61289049]
[1744265497746,16.03659049,116.65,116.6,16.03659049]
[1744265498148,79.47013935,116.68,116.62,16.03659049]
[1744265498320,16.03659049,116.67,116.62,24.61099049]
[1744265499010,16.03659049,116.67,116.62,8.5744]
[1744265499216,16.03659049,116.65,116.59,9.1505]
[1744265499421,16.03659049,116.65,116.6,16.03659049]
[1744265499922,0.28432314,116.66,116.61,16.03659049]
[1744265500125,16.03659049,116.65,116.61,16.03659049]
[1744265500331,16.03659049,116.62,116.59,7.643]
[1744265500538,16.03659049,116.61,116.59,0.063]
[1744265501038,16.03659049,116.62,116.59,0.063]
[1744265501239,16.03659049,116.61,116.59,0.063]
[1744265501443,24.61239049,116.61,116.59,0.063]
[1744265501838,8.5758,116.61,116.59,0.063]
[1744265502845,24.61179049,116.62,116.59,0.063]
[1744265503422,8.5752,116.62,116.59,0.063]
[1744265503839,79.47263935,116.65,116.61,16.03659049]
[1744265504329,95.50922984,116.65,116.61,16.03659049]
[1744265504846,95.50922984,116.65,116.61,24.61209049]
[1744265505147,79.47263935,116.65,116.61,24.61209049]
[1744265505354,16.03659049,116.64,116.59,16.09959049]
[1744265505526,79.47263935,116.65,116.59,0.063]
[1744265505527,16.03659049,116.63,116.59,0.063]
[1744265505717,16.03659049,116.62,116.59,0.063]
[1744265506138,16.03659049,116.61,116.59,0.063]
[1744265508242,24.61219049,116.61,116.59,0.063]
[1744265512556,16.03659049,116.6,116.59,0.063]
[1744265513056,24.61219049,116.61,116.59,0.063]
[1744265513955,16.03659049,116.61,116.59,0.063]
[1744265514649,24.61249049,116.61,116.59,0.063]
[1744265516460,8.85912314,116.62,116.59,0.063]
[1744265516839,24.89571363,116.62,116.59,0.063]
[1744265518667,24.61139049,116.62,116.59,0.063]
[1744265518861,95.51062984,116.63,116.59,0.063]
[1744265519248,70.89973935,116.63,116.59,16.09959049]
[1744265520540,79.47393935,116.63,116.59,16.09959049]
[1744265520859,70.89973935,116.63,116.61,16.03659049]
[1744265521162,8.5715,116.67,116.62,16.03659049]
[1744265521363,24.60809049,116.67,116.62,16.03659049]
[1744265522260,24.60809049,116.67,116.6,39.2093]
[1744265522261,16.03659049,116.66,116.6,39.2093]
[1744265522452,16.03659049,116.65,116.61,16.03659049]
[1744265522763,16.03659049,116.66,116.62,8.5748]
[1744265523653,16.03659049,116.67,116.62,24.61139049]
[1744265523849,79.75476249,116.68,116.62,24.61139049]
[1744265524155,16.32091363,116.67,116.62,24.61139049]
[1744265524354,70.89973935,116.68,116.63,16.03659049]
[1744265524552,86.93632984,116.68,116.63,16.03659049]
[1744265524754,86.93632984,116.68,116.64,8.5733]
[1744265525751,16.03659049,116.67,116.64,8.5733]
[1744265526862,16.03659049,116.67,116.63,8.5741]
[1744265528265,16.03659049,116.66,116.62,8.5745]
[1744265528476,16.03659049,116.65,116.61,8.5752]
[1744265528971,24.60919049,116.65,116.61,8.5752]
[1744265530082,16.03659049,116.64,116.6,17.7682]
[1744265532378,24.61009049,116.64,116.6,17.7682]
[1744265533179,8.5735,116.64,116.6,17.7682]
[1744265533380,16.03659049,116.64,116.6,17.7682]
[1744265533773,16.03659049,116.64,116.6,10.1882]
[1744265533963,16.03659049,116.63,116.6,1.6122]
[1744265535389,0.28432314,116.62,116.59,0.063]
[1744265535595,16.32091363,116.6,116.59,0.063]
[1744265537800,24.89721363,116.6,116.59,0.063]
[1744265537971,8.86062314,116.6,116.59,0.063]
[1744265538303,24.61289049,116.6,116.59,0.063]
[1744265538899,16.03659049,116.6,116.59,0.063]
[1744265539069,95.51222984,116.61,116.59,0.063]
[1744265539465,16.03659049,116.6,116.59,0.063]
[1744265543790,79.47563935,116.61,116.59,0.063]
[1744265544195,16.03659049,116.6,116.59,0.063]
[1744265544697,16.32091363,116.6,116.59,0.063]
[1744265544874,0.28432314,116.6,116.59,0.063]
[1744265545072,16.32091363,116.6,116.59,0.063]
[1744265546213,24.89721363,116.6,116.59,0.063]
[1744265554180,8.5763,116.6,116.59,0.063]
[1744265554509,8.5757,116.61,116.59,0.063]
[1744265556706,0.28432314,116.63,116.59,0.063]
[1744265556928,24.61139049,116.62,116.59,0.063]
[1744265559723,8.5748,116.62,116.59,0.063]
[1744265559890,70.89973935,116.64,116.59,34.74923935]
[1744265560215,70.89973935,116.64,116.6,16.03659049]
[1744265561247,70.89973935,116.64,116.62,8.5748]
[1744265561415,7.58,116.67,116.63,17.55609049]
[1744265561416,16.03659049,116.67,116.63,17.55609049]
[1744265561797,16.03659049,116.67,116.63,1.5195]
[1744265562525,16.03659049,116.65,116.6,10.1374]
[1744265562826,16.03659049,116.65,116.6,26.17399049]
[1744265563000,16.03659049,116.63,116.6,1.5615]
[1744265563330,24.61149049,116.62,116.6,1.5615]
[1744265563992,8.5749,116.62,116.6,1.5615]
[1744265564194,24.61149049,116.62,116.6,1.5615]
[1744265564388,24.61149049,116.62,116.59,0.063]
[1744265564629,16.03659049,116.61,116.59,0.063]
[1744265565335,24.61259049,116.61,116.59,0.063]
[1744265566732,70.89973935,116.65,116.59,0.063]
[1744265566911,86.93632984,116.65,116.6,16.03659049]
[1744265567635,95.50932984,116.65,116.6,24.61259049]
[1744265568837,16.03659049,116.64,116.6,8.576]
[1744265570445,16.03659049,116.63,116.59,0.063]
[1744265570739,16.03659049,116.62,116.59,0.063]
[1744265570935,24.61139049,116.62,116.59,0.063]
[1744265571627,16.03659049,116.62,116.59,0.063]
[1744265571825,8.5743,116.63,116.59,0.063]
[1744265572031,16.03659049,116.62,116.59,0.063]
[1744265572231,24.61089049,116.63,116.59,0.063]
[1744265572435,16.03659049,116.63,116.59,0.063]
[1744265572936,16.03659049,116.61,116.59,0.063]
[1744265574542,8.5746,116.63,116.59,0.063]
[1744265574918,16.03659049,116.62,116.59,0.063]
[1744265575451,24.61169049,116.62,116.59,0.063]
[1744265575617,16.32091363,116.61,116.59,0.063]
[1744265575821,16.03659049,116.6,116.59,0.063]
[1744265576233,8.5751,116.62,116.59,0.063]
[1744265576422,24.61169049,116.62,116.59,0.063]
[1744265579445,16.32091363,116.63,116.59,0.063]
[1744265579747,70.89973935,116.64,116.6,16.03659049]
[1744265580259,70.89973935,116.64,116.61,16.03659049]
[1744265580427,70.89973935,116.64,116.62,8.5748]
[1744265580627,16.03659049,116.66,116.62,8.5748]
[1744265582255,16.03659049,116.65,116.62,8.5748]
[1744265584157,16.03659049,116.67,116.62,46.04849049]
[1744265584839,16.03659049,116.66,116.62,30.0119]
[1744265585559,79.75476249,116.68,116.62,46.04849049]
[1744265585560,16.03659049,116.67,116.62,46.04849049]
[1744265585757,16.03659049,116.65,116.61,8.5753]
[1744265587163,16.03659049,116.62,116.6,7.982]
[1744265587330,0.28432314,116.6,116.59,0.063]
[1744265587650,16.32091363,116.6,116.59,0.063]
[1744265588960,24.89721363,116.6,116.59,0.063]
[1744265589262,59.58345298,116.6,116.59,0.063]
[1744265589451,43.54686249,116.6,116.59,0.063]
[1744265589642,51.12686249,116.6,116.59,0.063]
[1744265590129,67.16345298,116.6,116.59,0.063]
[1744265590336,0.28432314,116.59,116.54,0.063]
[1744265590535,16.03659049,116.55,116.54,0.063]
[1744265591139,24.61659049,116.55,116.54,0.063]
[1744265594867,24.90091363,116.55,116.54,0.063]
[1744265606587,16.32091363,116.55,116.54,0.063]
[1744265608082,16.03659049,116.55,116.54,0.063]
[1744265608262,86.93632984,116.56,116.54,0.063]
[1744265608451,16.03659049,116.55,116.54,0.063]
[1744265609775,79.47903935,116.56,116.54,0.063]
[1744265609980,16.03659049,116.55,116.54,0.063]
[1744265611188,24.90091363,116.55,116.54,0.063]
[1744265612372,16.32091363,116.55,116.54,0.063]
[1744265612577,0.28432314,116.55,116.54,0.063]
[1744265613085,24.90091363,116.55,116.54,0.063]
[1744265613385,16.32091363,116.55,116.54,0.063]
[1744265616684,16.03659049,116.55,116.54,0.063]
[1744265616982,16.03659049,116.58,116.54,1.64]
[1744265617786,16.32091363,116.58,116.54,10.2203]
[1744265618373,16.03659049,116.57,116.54,10.2203]
[1744265618888,16.32091363,116.58,116.54,10.2203]
[1744265619089,0.28432314,116.58,116.54,10.2203]
[1744265619267,16.32091363,116.58,116.54,10.2203]
[1744265620287,24.89901363,116.58,116.54,10.2203]
[1744265621383,24.61469049,116.58,116.54,1.64]
[1744265621589,16.03659049,116.57,116.54,10.2207]
[1744265622086,16.03659049,116.58,116.54,10.2207]
[1744265623296,10.28677346,116.58,116.54,10.2207]
[1744265624793,10.28677346,116.57,116.54,10.2207]
[1744265625675,8.86172314,116.59,116.54,10.2207]
[1744265625883,10.28677346,116.58,116.54,10.2207]
[1744265626869,18.86457346,116.58,116.54,10.2207]
[1744265630794,10.28677346,116.57,116.54,10.2207]
[1744265633495,8.5771,116.59,116.54,10.2207]
[1744265633698,10.28677346,116.58,116.54,20.50747346]
[1744265635397,10.28677346,116.58,116.54,41.95927346]
[1744265636503,10.28677346,116.58,116.54,10.2207]
[1744265636684,10.28677346,116.58,116.54,20.50747346]
[1744265637014,10.28677346,116.59,116.54,20.50747346]
[1744265637405,8.71806157,116.61,116.56,10.28677346]
[1744265637577,19.00483503,116.61,116.56,10.28677346]
[1744265638711,10.28677346,116.6,116.57,8.5785]
[1744265640410,8.5752,116.62,116.58,7.6387]
[1744265640411,10.28677346,116.62,116.58,7.6387]
[1744265641102,18.86177346,116.62,116.58,7.6387]
[1744265641314,10.28677346,116.6,116.58,7.6387]
[1744265642199,10.28677346,116.61,116.58,16.2164]
[1744265642809,10.28677346,116.59,116.54,1.6148]
[1744265642988,0.28432314,116.6,116.54,1.6148]
[1744265642989,10.28677346,116.57,116.54,1.6148]
[1744265644086,18.86537346,116.57,116.54,1.6148]
[1744265644285,10.28677346,116.56,116.54,1.6148]
[1744265645716,10.28677346,116.57,116.54,1.6148]
[1744265645919,10.28677346,116.56,116.54,1.6148]
[1744265646291,10.28677346,116.57,116.54,1.6148]
[1744265647514,18.86547346,116.57,116.54,1.6148]
[1744265650819,18.86487346,116.58,116.54,10.1955]
[1744265650993,8.5781,116.58,116.54,20.48227346]
[1744265652199,18.86417346,116.59,116.54,20.48227346]
[1744265653500,8.5774,116.59,116.55,37.51632232]
[1744265658221,18.86417346,116.59,116.55,10.28677346]
[1744265658929,10.5710966,116.58,116.54,1.6148]
[1744265659112,10.28677346,116.56,116.54,1.6148]
[1744265659616,10.28677346,116.57,116.54,1.6148]
[1744265660319,18.86587346,116.57,116.54,1.6148]
[1744265661626,18.86587346,116.57,116.54,0.063]
[1744265661627,10.28677346,116.56,116.54,0.063]
[1744265662501,8.86242314,116.58,116.54,0.063]
[1744265662898,19.1491966,116.58,116.54,0.063]
[1744265663629,18.86487346,116.58,116.54,0.063]
[1744265664704,10.28677346,116.57,116.54,0.063]
[1744265664909,10.28677346,116.56,116.54,0.063]
[1744265665313,10.28677346,116.55,116.54,0.063]
[1744265665710,10.5710966,116.55,116.54,0.063]
[1744265666734,19.1510966,116.55,116.54,0.063]
[1744265671022,19.1510966,116.55,116.53,0.063]
[1744265671236,29.22074546,116.54,116.53,0.063]
[1744265671752,82.28432314,116.53,116.52,0.063]
[1744265671949,26.0,116.51,116.5,0.063]
[1744265672125,118.0710966,116.51,116.5,0.063]
[1744265673138,126.6539966,116.51,116.5,0.063]
[1744265674353,91.92893503,116.51,116.5,0.063]
[1744265674552,91.78677346,116.51,116.5,0.063]
[1744265674758,81.5,116.51,116.5,0.063]
[1744265675048,10.28677346,116.55,116.5,16.98467346]
[1744265675249,105.19910225,116.56,116.52,10.28677346]
[1744265675748,105.19910225,116.56,116.51,18.86967346]
[1744265675934,10.28677346,116.55,116.51,8.5829]
[1744265676133,94.91232879,116.56,116.52,10.28677346]
[1744265676448,81.5,116.56,116.53,10.28677346]
[1744265677156,81.5,116.56,116.54,8.5807]
[1744265677639,81.5,116.56,116.54,10.1957]
[1744265677860,81.5,116.56,116.54,1.615]
[1744265679135,16.35992465,116.55,116.51,1.615]
[1744265679331,16.07560151,116.55,116.51,1.615]
[1744265680643,16.07560151,116.53,116.51,1.615]
[1744265680950,24.65710151,116.53,116.51,1.615]
[1744265682132,24.65710151,116.53,116.5,0.063]
[1744265682758,16.07560151,116.52,116.5,0.063]
[1744265682958,24.65790151,116.52,116.5,0.063]
[1744265684534,16.35992465,116.53,116.5,0.063]
[1744265685966,90.081,116.54,116.5,0.063]
[1744265686134,106.15660151,116.54,116.5,0.063]
[1744265686839,81.5,116.54,116.5,0.063]
[1744265687033,81.5,116.54,116.5,8.6466]
[1744265687532,90.0808,116.54,116.5,24.72220151]
[1744265687742,106.15640151,116.54,116.5,0.063]
[1744265688881,24.65720151,116.53,116.5,0.063]
[1744265689448,106.15660151,116.54,116.5,0.063]
[1744265689656,16.35992465,116.53,116.5,0.063]
[1744265690158,106.15660151,116.54,116.5,0.063]
[1744265690743,16.07560151,116.53,116.5,0.063]
[1744265693540,24.65780151,116.52,116.5,0.063]
[1744265695069,0.28432314,116.51,116.5,0.063]
[1744265695365,8.5822,116.52,116.5,0.063]
[1744265695582,16.35992465,116.51,116.5,0.063]
[1744265695739,24.94282465,116.51,116.5,0.063]
[1744265701371,19.1686808,116.51,116.5,0.063]
[1744265703953,37.81832966,116.51,116.5,0.063]
[1744265704477,37.81832966,116.51,116.5,0.0001]
[1744265704664,18.933972,116.5,116.49,0.063]
[1744265704974,29.23542966,116.5,116.49,0.063]
[1744265705682,19.1693808,116.5,116.49,0.063]
[1744265708585,37.81902966,116.5,116.49,0.063]
[1744265712372,18.88505766,116.5,116.49,0.063]
[1744265712580,8.08,116.53,116.49,0.063]
[1744265712581,18.88435766,116.51,116.49,0.063]
[1744265712873,21.4524,116.54,116.49,10.36445766]
[1744265713076,0.28432314,116.53,116.49,10.36445766]
[1744265713278,113.25385766,116.54,116.49,10.36445766]
[1744265713451,8.5817,116.53,116.49,10.36445766]
[1744265713961,18.88315766,116.53,116.49,0.063]
[1744265716678,81.5,116.54,116.51,10.30145766]
[1744265716876,19.1650808,116.56,116.51,10.30145766]
[1744265717173,10.30145766,116.56,116.52,10.30145766]
[1744265717380,8.6088,116.57,116.52,10.30145766]
[1744265717557,0.03,116.57,116.53,10.30145766]
[1744265717759,0.03,116.57,116.54,1.503]
[1744265717951,0.03,116.57,116.54,11.80445766]
[1744265718277,0.03,116.57,116.54,1.503]
[1744265719297,16.39249563,116.57,116.54,1.503]
[1744265719578,16.07817249,116.56,116.54,1.503]
[1744265720176,16.07817249,116.55,116.51,1.503]
[1744265720479,16.07817249,116.54,116.51,1.503]
[1744265720659,0.28432314,116.55,116.51,1.503]
[1744265720660,16.07817249,116.52,116.51,1.503]
[1744265721064,8.5818,116.53,116.51,1.503]
[1744265722061,24.65997249,116.53,116.51,1.503]
[1744265724382,24.65997249,116.53,116.49,0.063]
[1744265725687,8.5818,116.53,116.49,16.14117249]
[1744265726283,24.65997249,116.53,116.49,0.063]
[1744265726588,16.36249563,116.5,116.49,0.063]
[1744265727679,16.07817249,116.5,116.49,0.063]
[1744265727882,16.07817249,116.51,116.49,0.063]
[1744265728183,24.66087249,116.52,116.49,0.063]
[1744265728583,24.65987249,116.53,116.49,6.6786]
[1744265729488,16.07817249,116.52,116.49,6.6786]
[1744265730171,8.5817,116.53,116.49,0.063]
[1744265730172,16.07817249,116.51,116.49,0.063]
[1744265731773,8.86612314,116.53,116.49,0.063]
[1744265731975,16.07817249,116.52,116.49,0.063]
[1744265733279,8.86612314,116.53,116.49,0.063]
[1744265733577,16.07817249,116.52,116.49,0.063]